[Event "Late-Titled-Tuesday-Blitz-January-23-2024"]
[Site "Chess.com"]
[Date "2024.01.23"]
[Round "7"]
[White "AlexPapasimakopoulos"]
[Black "OparinGrigoriy"]
[Result "0-1"]
[WhiteElo "2761"]
[BlackElo "3016"]
[TimeControl "180+1"]
[EndTime "15:14:42 PST"]
[Termination "OparinGrigoriy won on time"]

1. d4 {[%clk 0:03:00.9]} 1... a6 {[%clk 0:03:00.9]} 2. e4 {[%clk 0:03:00.4]}
2... c6 {[%clk 0:03:01.2]} 3. Bd3 {[%clk 0:02:59.9]} 3... d5 {[%clk 0:03:01.7]}
4. e5 {[%clk 0:02:50.4]} 4... c5 {[%clk 0:03:02.1]} 5. c3 {[%clk 0:02:50.6]}
5... Nc6 {[%clk 0:03:01.3]} 6. Nf3 {[%clk 0:02:50.9]} 6... Bg4 {[%clk
0:03:01.6]} 7. dxc5 {[%clk 0:02:37.5]} 7... e6 {[%clk 0:03:00.2]} 8. b4 {[%clk
0:02:31.7]} 8... Nxe5 {[%clk 0:02:52.8]} 9. Qa4+ {[%clk 0:02:23.1]} 9... Qd7
{[%clk 0:02:53.2]} 10. Qxd7+ {[%clk 0:02:13.2]} 10... Nxd7 {[%clk 0:02:54.1]}
11. Nbd2 {[%clk 0:02:13.2]} 11... Ngf6 {[%clk 0:02:51.8]} 12. h3 {[%clk
0:02:13.2]} 12... Bh5 {[%clk 0:02:52]} 13. g4 {[%clk 0:02:07]} 13... Bg6 {[%clk
0:02:52.2]} 14. Ke2 {[%clk 0:02:04.4]} 14... Be7 {[%clk 0:02:46.5]} 15. Bb2
{[%clk 0:01:48.8]} 15... Ne4 {[%clk 0:02:43.2]} 16. Nd4 {[%clk 0:01:38]} 16...
Nxf2 {[%clk 0:02:38]} 17. Bxg6 {[%clk 0:01:20.9]} 17... Nxh1 {[%clk 0:02:38]}
18. Bxf7+ {[%clk 0:01:17.3]} 18... Kxf7 {[%clk 0:02:38.9]} 19. Rxh1 {[%clk
0:01:17.4]} 19... Bf6 {[%clk 0:02:35.5]} 20. Rf1 {[%clk 0:01:10.1]} 20... h6
{[%clk 0:02:35.2]} 21. N2f3 {[%clk 0:01:07.9]} 21... Rhe8 {[%clk 0:02:30.2]} 22.
a3 {[%clk 0:01:00]} 22... Kg8 {[%clk 0:02:29]} 23. Kd1 {[%clk 0:00:56.5]} 23...
a5 {[%clk 0:02:27.5]} 24. Kc2 {[%clk 0:00:53.1]} 24... e5 {[%clk 0:02:22.5]} 25.
Nb5 {[%clk 0:00:52.9]} 25... axb4 {[%clk 0:02:21.4]} 26. cxb4 {[%clk 0:00:52.6]}
26... Rec8 {[%clk 0:02:17.2]} 27. Nd6 {[%clk 0:00:47.7]} 27... Rc7 {[%clk
0:02:16.9]} 28. Kb3 {[%clk 0:00:43]} 28... Rf8 {[%clk 0:01:56.2]} 29. Rd1 {[%clk
0:00:40.3]} 29... d4 {[%clk 0:01:48.1]} 30. Re1 {[%clk 0:00:27.3]} 30... b6
{[%clk 0:01:22]} 31. cxb6 {[%clk 0:00:16.7]} 31... Nxb6 {[%clk 0:01:14.3]} 32.
Nxe5 {[%clk 0:00:16.7]} 32... Rd7 {[%clk 0:01:05.7]} 33. Nf5 {[%clk 0:00:12]}
33... Bxe5 {[%clk 0:01:00.9]} 34. Rxe5 {[%clk 0:00:12.1]} 34... d3 {[%clk
0:01:01.6]} 35. Re1 {[%clk 0:00:11.1]} 35... Nd5 {[%clk 0:00:57.2]} 36. Rd1
{[%clk 0:00:10]} 36... Nf4 {[%clk 0:00:53.4]} 37. b5 {[%clk 0:00:06.7]} 37...
Nxh3 {[%clk 0:00:53.5]} 38. Rd2 {[%clk 0:00:06.4]} 38... h5 {[%clk 0:00:52.7]}
39. Nxg7 {[%clk 0:00:03.3]} 39... hxg4 {[%clk 0:00:48]} 40. a4 {[%clk
0:00:03.7]} 40... Rf2 {[%clk 0:00:47.4]} 41. Rxf2 {[%clk 0:00:01.9]} 41... Nxf2
{[%clk 0:00:48.3]} 42. Bc3 {[%clk 0:00:01.4]} 42... d2 {[%clk 0:00:44.4]} 43.
Bxd2 {[%clk 0:00:01.8]} 43... Rxd2 {[%clk 0:00:44.9]} 44. Nf5 {[%clk 0:00:02.4]}
44... Ne4 {[%clk 0:00:42.9]} 45. a5 {[%clk 0:00:01.9]} 45... Rd5 {[%clk
0:00:42.5]} 0-1

[Event "Late-Titled-Tuesday-Blitz-January-23-2024"]
[Site "Chess.com"]
[Date "2024.01.23"]
[Round "7"]
[White "Ali_rastbod"]
[Black "Sargsyan_Shant"]
[Result "0-1"]
[WhiteElo "2693"]
[BlackElo "2918"]
[TimeControl "180+1"]
[EndTime "15:14:47 PST"]
[Termination "Sargsyan_Shant won by resignation"]

1. Nf3 {[%clk 0:02:53.5]} 1... g6 {[%clk 0:03:00.7]} 2. e4 {[%clk 0:02:53.1]}
2... Nf6 {[%clk 0:02:58.7]} 3. e5 {[%clk 0:02:51.4]} 3... Nh5 {[%clk 0:02:59.1]}
4. d4 {[%clk 0:02:34.1]} 4... d6 {[%clk 0:02:59.3]} 5. Bc4 {[%clk 0:02:33.9]}
5... Bg7 {[%clk 0:02:59.4]} 6. O-O {[%clk 0:02:29.7]} 6... dxe5 {[%clk
0:02:59.8]} 7. Nxe5 {[%clk 0:02:25.1]} 7... Bxe5 {[%clk 0:03:00.2]} 8. dxe5
{[%clk 0:02:20.8]} 8... Qxd1 {[%clk 0:03:01.1]} 9. Rxd1 {[%clk 0:02:21.2]} 9...
Nc6 {[%clk 0:03:02]} 10. Nc3 {[%clk 0:02:07.5]} 10... Bf5 {[%clk 0:02:54.4]} 11.
Bb5 {[%clk 0:01:57.3]} 11... Bxc2 {[%clk 0:02:37.6]} 12. Rd2 {[%clk 0:01:44.8]}
12... Bf5 {[%clk 0:02:37.6]} 13. f3 {[%clk 0:01:45.3]} 13... Ng7 {[%clk
0:02:30.3]} 14. Nd5 {[%clk 0:01:39.6]} 14... Rc8 {[%clk 0:02:27.9]} 15. b3
{[%clk 0:01:27.9]} 15... Be6 {[%clk 0:02:17]} 16. Ba3 {[%clk 0:01:21]} 16...
Bxd5 {[%clk 0:02:15]} 17. Rxd5 {[%clk 0:01:21.9]} 17... Ne6 {[%clk 0:02:15.7]}
18. Rc1 {[%clk 0:01:15.4]} 18... Rd8 {[%clk 0:02:13.4]} 19. Rxd8+ {[%clk
0:01:04.1]} 19... Nxd8 {[%clk 0:02:10.1]} 20. f4 {[%clk 0:00:57.7]} 20... a6
{[%clk 0:02:10.4]} 21. Be2 {[%clk 0:00:58.3]} 21... Ne6 {[%clk 0:02:08.4]} 22.
g3 {[%clk 0:00:58.2]} 22... Ned4 {[%clk 0:02:04.7]} 23. Bd1 {[%clk 0:00:57.4]}
23... Kd7 {[%clk 0:02:04.5]} 24. Kf2 {[%clk 0:00:53.4]} 24... Rd8 {[%clk
0:02:04.7]} 25. Bg4+ {[%clk 0:00:52.3]} 25... Ke8 {[%clk 0:02:00.9]} 26. Bc5
{[%clk 0:00:50.9]} 26... h5 {[%clk 0:01:59.3]} 27. Bh3 {[%clk 0:00:50.7]} 27...
Ne6 {[%clk 0:01:57.7]} 28. Be3 {[%clk 0:00:49.8]} 28... Rd7 {[%clk 0:01:54.5]}
29. Bg2 {[%clk 0:00:49.3]} 29... Ncd8 {[%clk 0:01:51.8]} 30. h3 {[%clk
0:00:46.8]} 30... c6 {[%clk 0:01:51.6]} 31. g4 {[%clk 0:00:47]} 31... Ng7 {[%clk
0:01:49.3]} 32. Be4 {[%clk 0:00:45.2]} 32... e6 {[%clk 0:01:32.1]} 33. Ke2
{[%clk 0:00:40.7]} 33... Kf8 {[%clk 0:01:28.7]} 34. b4 {[%clk 0:00:39.3]} 34...
Ne8 {[%clk 0:01:10.4]} 35. gxh5 {[%clk 0:00:30.9]} 35... gxh5 {[%clk 0:01:10.7]}
36. f5 {[%clk 0:00:31.4]} 36... exf5 {[%clk 0:01:09.3]} 37. Bxf5 {[%clk
0:00:28.3]} 37... Ne6 {[%clk 0:01:09.8]} 38. Rf1 {[%clk 0:00:21.7]} 38... N8c7
{[%clk 0:01:07.6]} 39. Bh6+ {[%clk 0:00:19.7]} 39... Ke7 {[%clk 0:01:03.4]} 40.
Ke1 {[%clk 0:00:17.5]} 40... Rd5 {[%clk 0:01:02.9]} 41. Be3 {[%clk 0:00:07.9]}
41... Rxe5 {[%clk 0:01:03.4]} 42. Kd2 {[%clk 0:00:08.8]} 42... Nd5 {[%clk
0:01:02.9]} 43. Bg1 {[%clk 0:00:07.5]} 43... Nef4 {[%clk 0:01:01.7]} 44. Bc5+
{[%clk 0:00:05.2]} 44... Ke8 {[%clk 0:01:00.2]} 45. Bc8 {[%clk 0:00:05.7]} 45...
Re2+ {[%clk 0:01:00.5]} 46. Kc1 {[%clk 0:00:05.6]} 46... Nd3+ {[%clk 0:01:00.3]}
47. Kb1 {[%clk 0:00:06]} 47... Nc3+ {[%clk 0:01:00.6]} 0-1

[Event "Late-Titled-Tuesday-Blitz-January-23-2024"]
[Site "Chess.com"]
[Date "2024.01.23"]
[Round "7"]
[White "Kostukov_Alex"]
[Black "Noki102"]
[Result "1-0"]
[WhiteElo "2311"]
[BlackElo "2431"]
[TimeControl "180+1"]
[EndTime "15:14:51 PST"]
[Termination "Kostukov_Alex won by resignation"]

1. g3 {[%clk 0:02:56.2]} 1... Nc6 {[%clk 0:03:00.9]} 2. Bg2 {[%clk 0:02:53.9]}
2... d5 {[%clk 0:03:01.5]} 3. d4 {[%clk 0:02:53.4]} 3... Bf5 {[%clk 0:03:01.5]}
4. Nf3 {[%clk 0:02:53.7]} 4... e6 {[%clk 0:02:59.9]} 5. O-O {[%clk 0:02:53.4]}
5... h5 {[%clk 0:03:00.4]} 6. c4 {[%clk 0:02:46.2]} 6... h4 {[%clk 0:02:57.9]}
7. Nc3 {[%clk 0:02:33.5]} 7... h3 {[%clk 0:02:55.2]} 8. Bh1 {[%clk 0:02:32.7]}
8... Nf6 {[%clk 0:02:53.9]} 9. Ne5 {[%clk 0:02:26.8]} 9... Bd6 {[%clk
0:02:42.4]} 10. Bf4 {[%clk 0:02:20.4]} 10... Ne7 {[%clk 0:02:08.3]} 11. cxd5
{[%clk 0:02:10.2]} 11... exd5 {[%clk 0:01:56.4]} 12. Qb3 {[%clk 0:02:06]} 12...
Bxe5 {[%clk 0:01:29.1]} 13. dxe5 {[%clk 0:01:55.7]} 13... Ne4 {[%clk 0:01:27.7]}
14. Nxe4 {[%clk 0:01:40]} 14... Bxe4 {[%clk 0:01:21.3]} 15. Bxe4 {[%clk
0:01:38.2]} 15... dxe4 {[%clk 0:01:22.2]} 16. Qxb7 {[%clk 0:01:36.4]} 16... Qd5
{[%clk 0:00:51.6]} 17. Qxd5 {[%clk 0:01:35]} 17... Nxd5 {[%clk 0:00:52.5]} 18.
Rfd1 {[%clk 0:01:07.6]} 18... Nxf4 {[%clk 0:00:49.3]} 19. gxf4 {[%clk
0:01:05.1]} 19... Rh4 {[%clk 0:00:49.8]} 20. e3 {[%clk 0:01:03.3]} 20... Rg4+
{[%clk 0:00:47.1]} 21. Kf1 {[%clk 0:01:01]} 21... Rg2 {[%clk 0:00:44]} 22. Ke2
{[%clk 0:01:01.3]} 22... Rb8 {[%clk 0:00:40.1]} 23. b3 {[%clk 0:01:00]} 23...
Rb6 {[%clk 0:00:31.4]} 24. Rac1 {[%clk 0:00:53.1]} 24... Rxh2 {[%clk 0:00:19.7]}
25. Rxc7 {[%clk 0:00:47]} 25... Rg2 {[%clk 0:00:17.4]} 26. Rc8+ {[%clk
0:00:45.6]} 26... Ke7 {[%clk 0:00:16.2]} 27. Rh8 {[%clk 0:00:37.2]} 27... h2
{[%clk 0:00:15.3]} 28. Rh1 {[%clk 0:00:36.2]} 28... Rh6 {[%clk 0:00:15.2]} 29.
Rxh6 {[%clk 0:00:35.1]} 29... gxh6 {[%clk 0:00:16.1]} 30. Kf1 {[%clk 0:00:35.2]}
30... Rg1+ {[%clk 0:00:14.2]} 31. Rxg1 {[%clk 0:00:35.2]} 31... hxg1=Q+ {[%clk
0:00:15.1]} 32. Kxg1 {[%clk 0:00:35.7]} 32... Ke6 {[%clk 0:00:12.3]} 33. Kg2
{[%clk 0:00:35.3]} 33... Kd5 {[%clk 0:00:12.2]} 34. f3 {[%clk 0:00:35]} 34... a5
{[%clk 0:00:10.2]} 35. a3 {[%clk 0:00:34.1]} 35... h5 {[%clk 0:00:08.9]} 36. b4
{[%clk 0:00:31.7]} 36... axb4 {[%clk 0:00:07.1]} 37. axb4 {[%clk 0:00:31.8]}
37... Kc4 {[%clk 0:00:07.5]} 38. fxe4 {[%clk 0:00:30.4]} 38... Kxb4 {[%clk
0:00:07.9]} 39. f5 {[%clk 0:00:30.8]} 39... Kc5 {[%clk 0:00:07.9]} 40. e6 {[%clk
0:00:31.2]} 40... fxe6 {[%clk 0:00:08]} 41. f6 {[%clk 0:00:30.8]} 41... Kd6
{[%clk 0:00:07.6]} 42. e5+ {[%clk 0:00:31.1]} 42... Kd7 {[%clk 0:00:08.3]} 43.
Kh3 {[%clk 0:00:31.5]} 43... Ke8 {[%clk 0:00:07.6]} 44. Kh4 {[%clk 0:00:32.4]}
44... Kf7 {[%clk 0:00:08.2]} 45. Kxh5 {[%clk 0:00:32.9]} 45... Kg8 {[%clk
0:00:09]} 46. Kg6 {[%clk 0:00:33.1]} 46... Kf8 {[%clk 0:00:09.9]} 47. f7 {[%clk
0:00:32.1]} 47... Ke7 {[%clk 0:00:09.4]} 48. Kg7 {[%clk 0:00:32.8]} 48... Kd7
{[%clk 0:00:09.4]} 49. f8=Q {[%clk 0:00:33.7]} 49... Kc6 {[%clk 0:00:09.9]} 50.
Qd6+ {[%clk 0:00:34.3]} 1-0

[Event "Late-Titled-Tuesday-Blitz-January-23-2024"]
[Site "Chess.com"]
[Date "2024.01.23"]
[Round "7"]
[White "rionelG"]
[Black "JaackCamel"]
[Result "1-0"]
[WhiteElo "2266"]
[BlackElo "2162"]
[TimeControl "180+1"]
[EndTime "15:14:53 PST"]
[Termination "rionelG won on time"]

1. e4 {[%clk 0:03:00.9]} 1... e6 {[%clk 0:02:35.8]} 2. d4 {[%clk 0:03:00.2]}
2... d5 {[%clk 0:02:30.5]} 3. Nc3 {[%clk 0:03:00.6]} 3... Bb4 {[%clk 0:02:29.7]}
4. exd5 {[%clk 0:03:00.3]} 4... exd5 {[%clk 0:02:29.2]} 5. Nf3 {[%clk
0:03:00.1]} 5... Nf6 {[%clk 0:02:28.6]} 6. Bd3 {[%clk 0:02:59.9]} 6... O-O
{[%clk 0:02:26.4]} 7. O-O {[%clk 0:03:00.5]} 7... Bg4 {[%clk 0:02:23.1]} 8. Bg5
{[%clk 0:02:59]} 8... c6 {[%clk 0:02:22.3]} 9. Qd2 {[%clk 0:02:50]} 9... Bxf3
{[%clk 0:02:20.8]} 10. gxf3 {[%clk 0:02:50.9]} 10... Nbd7 {[%clk 0:02:20.2]} 11.
Kh1 {[%clk 0:02:50.8]} 11... Qc7 {[%clk 0:02:14.1]} 12. Rg1 {[%clk 0:02:48]}
12... Kh8 {[%clk 0:02:14.1]} 13. Rg3 {[%clk 0:02:28.8]} 13... Nh5 {[%clk
0:01:29.9]} 14. Rh3 {[%clk 0:02:23.7]} 14... g6 {[%clk 0:01:16.8]} 15. Rxh5
{[%clk 0:02:14.6]} 15... gxh5 {[%clk 0:01:15.8]} 16. Bf5 {[%clk 0:02:14.8]}
16... f6 {[%clk 0:01:04.2]} 17. Bh6 {[%clk 0:02:04.2]} 17... Rg8 {[%clk
0:00:57.6]} 18. Re1 {[%clk 0:02:02.3]} 18... Rae8 {[%clk 0:00:50.9]} 19. Re6
{[%clk 0:01:22.5]} 19... Rxe6 {[%clk 0:00:45.6]} 20. Bxe6 {[%clk 0:01:23.4]}
20... Rg6 {[%clk 0:00:43.1]} 21. Bf7 {[%clk 0:01:16]} 21... Bf8 {[%clk
0:00:35.5]} 22. Bxg6 {[%clk 0:01:13.1]} 22... hxg6 {[%clk 0:00:35.3]} 23. Bf4
{[%clk 0:01:00.3]} 23... Bd6 {[%clk 0:00:35.4]} 24. Bxd6 {[%clk 0:01:00.2]}
24... Qxd6 {[%clk 0:00:35.7]} 25. Qh6+ {[%clk 0:01:00.9]} 25... Kg8 {[%clk
0:00:34.1]} 26. Qxg6+ {[%clk 0:01:01.4]} 26... Kf8 {[%clk 0:00:33.6]} 27. Qh6+
{[%clk 0:01:00.1]} 27... Ke7 {[%clk 0:00:29.9]} 28. Qxh5 {[%clk 0:00:55.5]}
28... Qf4 {[%clk 0:00:29.4]} 29. Qh7+ {[%clk 0:00:33.8]} 29... Kd6 {[%clk
0:00:26.2]} 30. Kg2 {[%clk 0:00:31]} 30... Qxd4 {[%clk 0:00:22.1]} 31. h4 {[%clk
0:00:25.8]} 31... Qf4 {[%clk 0:00:17.9]} 32. Ne2 {[%clk 0:00:17.6]} 32... Qd2
{[%clk 0:00:13.9]} 33. Ng3 {[%clk 0:00:17]} 33... Qf4 {[%clk 0:00:11.1]} 34. h5
{[%clk 0:00:14.8]} 34... Ne5 {[%clk 0:00:09.5]} 35. Qf5 {[%clk 0:00:12]} 1-0

[Event "Late-Titled-Tuesday-Blitz-January-23-2024"]
[Site "Chess.com"]
[Date "2024.01.23"]
[Round "7"]
[White "js20000"]
[Black "FairChess_on_YouTube"]
[Result "1/2-1/2"]
[WhiteElo "2900"]
[BlackElo "3091"]
[TimeControl "180+1"]
[EndTime "15:14:55 PST"]
[Termination "Game drawn by repetition"]

1. e4 {[%clk 0:03:00.9]} 1... c5 {[%clk 0:02:59.3]} 2. Nf3 {[%clk 0:03:00.7]}
2... e6 {[%clk 0:02:59.6]} 3. c3 {[%clk 0:03:00.5]} 3... d5 {[%clk 0:02:57.4]}
4. e5 {[%clk 0:03:00.2]} 4... Nc6 {[%clk 0:02:57.1]} 5. d4 {[%clk 0:03:00.1]}
5... Qb6 {[%clk 0:02:54.9]} 6. Bd3 {[%clk 0:02:57.4]} 6... Bd7 {[%clk
0:02:53.9]} 7. O-O {[%clk 0:02:56.7]} 7... a5 {[%clk 0:02:53.5]} 8. dxc5 {[%clk
0:02:43.7]} 8... Bxc5 {[%clk 0:02:52.8]} 9. a4 {[%clk 0:02:43.4]} 9... Nge7
{[%clk 0:02:50.2]} 10. Nbd2 {[%clk 0:02:42.1]} 10... Ng6 {[%clk 0:02:50]} 11.
Nb3 {[%clk 0:02:41.9]} 11... Ncxe5 {[%clk 0:02:43.2]} 12. Nxe5 {[%clk
0:02:13.9]} 12... Nxe5 {[%clk 0:02:41.9]} 13. Nxc5 {[%clk 0:02:14.4]} 13... Qxc5
{[%clk 0:02:42.8]} 14. Be3 {[%clk 0:02:14.5]} 14... Qe7 {[%clk 0:02:38.5]} 15.
Bd4 {[%clk 0:02:05]} 15... Nxd3 {[%clk 0:02:36.7]} 16. Qxd3 {[%clk 0:02:05.9]}
16... O-O {[%clk 0:02:34.9]} 17. f4 {[%clk 0:01:58]} 17... f6 {[%clk 0:02:31.6]}
18. Rfe1 {[%clk 0:01:51.5]} 18... Qf7 {[%clk 0:02:30.7]} 19. Re3 {[%clk
0:01:50.4]} 19... Qg6 {[%clk 0:02:28.2]} 20. Qe2 {[%clk 0:01:07.6]} 20... Qf5
{[%clk 0:02:25.4]} 21. g3 {[%clk 0:01:07.1]} 21... Rae8 {[%clk 0:02:16.7]} 22.
b3 {[%clk 0:01:03.3]} 22... e5 {[%clk 0:01:40.4]} 23. fxe5 {[%clk 0:01:02.6]}
23... fxe5 {[%clk 0:01:39.9]} 24. Rxe5 {[%clk 0:01:02.8]} 24... Rxe5 {[%clk
0:01:35.6]} 25. Qxe5 {[%clk 0:01:03.7]} 25... Qxe5 {[%clk 0:01:27.3]} 26. Bxe5
{[%clk 0:01:04.6]} 26... Bh3 {[%clk 0:01:27]} 27. Bd4 {[%clk 0:01:02]} 27... Rf3
{[%clk 0:01:26]} 28. Re1 {[%clk 0:01:00.9]} 28... h5 {[%clk 0:01:21.4]} 29. Rc1
{[%clk 0:00:49.4]} 29... Kh7 {[%clk 0:01:20.3]} 30. Bb6 {[%clk 0:00:49.2]} 30...
Rd3 {[%clk 0:01:17.2]} 31. Bxa5 {[%clk 0:00:44.2]} 31... Rd2 {[%clk 0:01:17.5]}
32. Bb6 {[%clk 0:00:43]} 32... Rg2+ {[%clk 0:01:15.7]} 33. Kh1 {[%clk
0:00:43.4]} 33... Rb2 {[%clk 0:01:16.3]} 34. b4 {[%clk 0:00:42.5]} 34... Bg2+
{[%clk 0:01:16]} 35. Kg1 {[%clk 0:00:42.8]} 35... Be4 {[%clk 0:01:16.6]} 36. Bf2
{[%clk 0:00:42.7]} 36... Kg6 {[%clk 0:01:15.2]} 37. a5 {[%clk 0:00:42.9]} 37...
Kf5 {[%clk 0:01:14.5]} 38. h3 {[%clk 0:00:43.3]} 38... g5 {[%clk 0:01:11.3]} 39.
Rf1 {[%clk 0:00:40.9]} 39... g4 {[%clk 0:01:11.2]} 40. c4 {[%clk 0:00:40.1]}
40... Bd3 {[%clk 0:01:02.4]} 41. Bd4+ {[%clk 0:00:38.6]} 41... Bxf1 {[%clk
0:01:01.6]} 42. Bxb2 {[%clk 0:00:38.7]} 42... Bxc4 {[%clk 0:00:56.3]} 43. hxg4+
{[%clk 0:00:38.2]} 43... hxg4 {[%clk 0:00:56.7]} 44. Kf2 {[%clk 0:00:38.5]}
44... Ke4 {[%clk 0:00:57.3]} 45. Bc1 {[%clk 0:00:36.4]} 45... d4 {[%clk
0:00:56.6]} 46. Bf4 {[%clk 0:00:36.4]} 46... Kd3 {[%clk 0:00:53.1]} 47. Ke1
{[%clk 0:00:35.5]} 47... Kc3 {[%clk 0:00:53.4]} 48. Bd2+ {[%clk 0:00:35.1]}
48... Kb3 {[%clk 0:00:53.6]} 49. Kf2 {[%clk 0:00:34.3]} 49... Kb2 {[%clk
0:00:52.2]} 50. Ke1 {[%clk 0:00:33.9]} 50... Kc2 {[%clk 0:00:52.5]} 51. Bf4
{[%clk 0:00:34.1]} 51... Kd3 {[%clk 0:00:52.3]} 52. Bg5 {[%clk 0:00:34]} 52...
Bb5 {[%clk 0:00:52.6]} 53. Bf4 {[%clk 0:00:33.9]} 53... Kc3 {[%clk 0:00:52.8]}
54. Bd2+ {[%clk 0:00:33.7]} 54... Kc4 {[%clk 0:00:53.5]} 55. Kd1 {[%clk
0:00:32]} 55... Kd5 {[%clk 0:00:48.8]} 56. Bf4 {[%clk 0:00:30]} 56... Ke4 {[%clk
0:00:49.1]} 57. Kd2 {[%clk 0:00:30]} 57... Ba4 {[%clk 0:00:48.3]} 58. Bd6 {[%clk
0:00:30.3]} 58... Bb5 {[%clk 0:00:48.4]} 59. Bc7 {[%clk 0:00:30.3]} 59... Ba6
{[%clk 0:00:48.6]} 60. Bb8 {[%clk 0:00:30.3]} 60... Kd5 {[%clk 0:00:48.3]} 61.
Bc7 {[%clk 0:00:30.3]} 61... Kc4 {[%clk 0:00:48.5]} 62. Bd6 {[%clk 0:00:30.6]}
62... Bb5 {[%clk 0:00:49.1]} 63. Bf8 {[%clk 0:00:30.7]} 63... Kb3 {[%clk
0:00:49.3]} 64. Be7 {[%clk 0:00:31]} 64... Kc4 {[%clk 0:00:49.6]} 65. Bf8 {[%clk
0:00:31.3]} 65... Ba6 {[%clk 0:00:50.1]} 66. Be7 {[%clk 0:00:31.6]} 66... Bb5
{[%clk 0:00:50.7]} 67. Bf8 {[%clk 0:00:31.8]} 1/2-1/2

[Event "Late-Titled-Tuesday-Blitz-January-23-2024"]
[Site "Chess.com"]
[Date "2024.01.23"]
[Round "7"]
[White "iturrizaga"]
[Black "K_A_S_T_O_R"]
[Result "1-0"]
[WhiteElo "3028"]
[BlackElo "2901"]
[TimeControl "180+1"]
[EndTime "15:14:57 PST"]
[Termination "iturrizaga won by resignation"]

1. Nf3 {[%clk 0:03:00.9]} 1... c5 {[%clk 0:02:55.7]} 2. c4 {[%clk 0:03:01]} 2...
Nf6 {[%clk 0:02:55.6]} 3. Nc3 {[%clk 0:03:01.4]} 3... e6 {[%clk 0:02:56.1]} 4.
g3 {[%clk 0:03:00.4]} 4... b6 {[%clk 0:02:55.8]} 5. Bg2 {[%clk 0:03:00.6]} 5...
Bb7 {[%clk 0:02:56.5]} 6. O-O {[%clk 0:03:01.1]} 6... a6 {[%clk 0:02:57]} 7. d4
{[%clk 0:03:01.3]} 7... cxd4 {[%clk 0:02:56.4]} 8. Qxd4 {[%clk 0:03:02.2]} 8...
d6 {[%clk 0:02:56.9]} 9. Bg5 {[%clk 0:03:02.4]} 9... Nbd7 {[%clk 0:02:57.4]} 10.
Rfd1 {[%clk 0:02:59.2]} 10... Rc8 {[%clk 0:02:51.9]} 11. Rac1 {[%clk 0:02:52.8]}
11... Qc7 {[%clk 0:02:50.2]} 12. b3 {[%clk 0:02:31.8]} 12... Be7 {[%clk
0:02:48.9]} 13. Qd2 {[%clk 0:02:32.1]} 13... Rd8 {[%clk 0:02:35.3]} 14. Bf4
{[%clk 0:02:20.3]} 14... Nc5 {[%clk 0:02:34.5]} 15. h3 {[%clk 0:01:59.8]} 15...
O-O {[%clk 0:02:33.5]} 16. Qe3 {[%clk 0:01:58]} 16... Rfe8 {[%clk 0:02:29]} 17.
g4 {[%clk 0:01:57.1]} 17... Nfe4 {[%clk 0:02:15.7]} 18. Nxe4 {[%clk 0:01:49.1]}
18... Nxe4 {[%clk 0:02:15.9]} 19. Nd4 {[%clk 0:01:25.5]} 19... Nf6 {[%clk
0:01:52]} 20. Bg3 {[%clk 0:01:24.9]} 20... h6 {[%clk 0:01:44.5]} 21. a4 {[%clk
0:01:22.9]} 21... Rc8 {[%clk 0:01:43.5]} 22. b4 {[%clk 0:01:16.7]} 22... Red8
{[%clk 0:01:40.6]} 23. c5 {[%clk 0:01:00.6]} 23... Qb8 {[%clk 0:01:00.9]} 24. c6
{[%clk 0:00:56.7]} 24... Ba8 {[%clk 0:01:01.2]} 25. b5 {[%clk 0:00:56.3]} 25...
axb5 {[%clk 0:01:01.6]} 26. axb5 {[%clk 0:00:54.9]} 26... Qc7 {[%clk 0:01:01.5]}
27. Ra1 {[%clk 0:00:52.6]} 27... Re8 {[%clk 0:01:01]} 28. Ra6 {[%clk 0:00:50.3]}
28... Bf8 {[%clk 0:01:00.4]} 29. Rda1 {[%clk 0:00:50.1]} 29... e5 {[%clk
0:00:58.1]} 30. Nf5 {[%clk 0:00:48]} 30... d5 {[%clk 0:00:52.4]} 31. Qxb6 {[%clk
0:00:47.5]} 31... Qxb6 {[%clk 0:00:49.3]} 32. Rxb6 {[%clk 0:00:48.4]} 32... g6
{[%clk 0:00:49.6]} 33. Ne3 {[%clk 0:00:45.6]} 33... Bc5 {[%clk 0:00:49.5]} 34.
Rba6 {[%clk 0:00:45.6]} 34... Bd4 {[%clk 0:00:49.2]} 35. R1a3 {[%clk 0:00:22.7]}
35... Bxe3 {[%clk 0:00:45.6]} 36. Rxe3 {[%clk 0:00:23.6]} 36... e4 {[%clk
0:00:42.1]} 37. Rea3 {[%clk 0:00:21.5]} 37... Kg7 {[%clk 0:00:40.9]} 38. e3
{[%clk 0:00:21.1]} 38... g5 {[%clk 0:00:38.4]} 39. Be5 {[%clk 0:00:17.5]} 39...
Rxe5 {[%clk 0:00:31.8]} 40. Rxa8 {[%clk 0:00:17.7]} 40... Ree8 {[%clk
0:00:32.5]} 41. Rxc8 {[%clk 0:00:17.6]} 41... Rxc8 {[%clk 0:00:33.2]} 42. Ra7
{[%clk 0:00:17.3]} 42... Ne8 {[%clk 0:00:32.3]} 43. Rd7 {[%clk 0:00:17.3]} 43...
Rb8 {[%clk 0:00:30.7]} 44. Rxd5 {[%clk 0:00:13.3]} 44... Nc7 {[%clk 0:00:30.1]}
45. Rd7 {[%clk 0:00:13.7]} 45... Nxb5 {[%clk 0:00:26.2]} 46. Rb7 {[%clk
0:00:13.7]} 1-0